bitfinex/quotes_SOLUSD_20240616
["timestamp","ask_amount","ask_price","bid_price","bid_amount"]
[1718547448943,20.1718,146.74,146.7,2.522]
[1718547449147,25.2148,146.74,146.7,2.522]
[1718547449352,2.5216,146.73,146.7,2.522]
[1718547449561,16.42,146.75,146.65,15.3044]
[1718547449740,18.9413,146.75,146.65,15.3044]
[1718547449938,7.5645,146.74,146.65,15.3044]
[1718547450138,7.5645,146.74,146.7,2.522]
[1718547450450,15.1289,146.74,146.7,2.522]
[1718547450963,7.5645,146.74,146.7,2.522]
[1718547451159,5.0433,146.73,146.69,2.5222]
[1718547451339,22.6951,146.73,146.69,2.5222]
[1718547451541,15.1309,146.72,146.68,2.5223]
[1718547451748,7.5655,146.72,146.69,2.5223]
[1718547452051,25.217,146.73,146.69,2.5222]
[1718547452267,2.5218,146.72,146.69,2.5222]
[1718547452749,17.6519,146.73,146.69,2.5222]
[1718547452929,2.5218,146.72,146.69,2.5222]
[1718547453336,17.9906,146.74,146.7,2.5221]
[1718547453544,17.9906,146.74,146.65,15.3044]
[1718547453545,12.6084,146.73,146.65,15.3044]
[1718547453756,2.5218,146.72,146.69,2.5222]
[1718547454277,2.5218,146.72,146.69,2.5223]
[1718547454278,7.5654,146.72,146.69,2.5223]
[1718547454562,7.5654,146.72,146.68,2.5223]
[1718547454563,2.5219,146.71,146.68,2.5223]
[1718547455466,5.47,146.69,146.68,2.5223]
[1718547457083,2.5216,146.73,146.7,2.522]
[1718547457370,5.47,146.71,146.7,2.522]
[1718547457855,2.5215,146.74,146.65,15.3044]
[1718547458071,5.47,146.69,146.68,2.5224]
[1718547458362,5.47,146.7,146.69,2.5223]
[1718547460562,5.47,146.7,146.68,2.5224]
[1718547460764,5.47,146.69,146.65,15.3044]
[1718547460935,2.5219,146.71,146.68,2.5223]
[1718547461140,2.5219,146.71,146.65,15.3044]
[1718547461141,5.47,146.69,146.65,15.3044]
[1718547461367,2.5224,146.69,146.66,2.5228]
[1718547461565,2.5221,146.7,146.67,2.5225]
[1718547461742,5.47,146.68,146.67,2.5225]
[1718547462061,5.47,146.68,146.61,16.2379]
[1718547462062,13.0375,146.68,146.61,16.2379]
[1718547462254,5.47,146.68,146.65,7.5688]
[1718547462557,5.47,146.68,146.61,16.2379]
[1718547462558,5.47,146.66,146.64,7.5691]
[1718547462866,5.47,146.65,146.64,7.5691]
[1718547463369,2.5225,146.68,146.64,7.5691]
[1718547463547,5.47,146.65,146.64,7.5691]
[1718547464287,5.47,146.65,146.64,2.523]
[1718547465062,5.47,146.65,146.63,5.0465]
[1718547465272,5.47,146.64,146.63,5.0465]
[1718547465466,5.47,146.64,146.63,7.5698]
[1718547469465,2.5226,146.67,146.63,7.5698]
[1718547469466,2.5226,146.67,146.64,2.5231]
[1718547469666,5.47,146.65,146.64,2.5231]
[1718547470074,5.47,146.65,146.61,16.2379]
[1718547470254,5.47,146.62,146.61,18.7616]
[1718547470573,21.88,146.65,146.62,7.5704]
[1718547470877,5.47,146.63,146.58,6.3784]
[1718547471071,2.523,146.65,146.62,2.5235]
[1718547471262,5.47,146.63,146.62,2.5235]
[1718547471573,5.47,146.63,146.62,7.5705]
[1718547472572,5.47,146.63,146.61,5.0472]
[1718547472873,22.7058,146.66,146.61,7.5709]
[1718547472874,5.47,146.62,146.61,7.5709]
[1718547473083,5.47,146.63,146.61,5.0472]
[1718547473247,5.47,146.62,146.61,7.5709]
[1718547475265,5.47,146.63,146.62,2.5235]
[1718547475579,5.47,146.63,146.62,7.5705]
[1718547476070,5.47,146.63,146.62,2.5235]
[1718547476270,5.47,146.63,146.62,7.5705]
[1718547476474,5.47,146.63,146.62,2.5235]
[1718547477073,5.47,146.63,146.62,7.5705]
[1718547477276,5.47,146.63,146.62,2.5235]
[1718547477480,5.47,146.63,146.62,7.5705]
[1718547477678,17.658,146.68,146.63,5.0466]
[1718547477979,5.47,146.64,146.63,7.5699]
[1718547478280,7.9081,146.67,146.63,7.5699]
[1718547478453,5.47,146.64,146.63,7.5699]
[1718547479157,5.47,146.64,146.63,2.5232]
[1718547479550,2.5228,146.66,146.63,2.5232]
[1718547479755,5.47,146.64,146.63,2.5232]
[1718547480163,5.47,146.64,146.62,7.5702]
[1718547480366,5.47,146.63,146.62,7.5702]
[1718547481080,5.47,146.66,146.65,2.5228]
[1718547481262,5.47,146.66,146.65,7.5687]
[1718547481576,5.47,146.66,146.63,7.5696]
[1718547481793,5.47,146.64,146.63,7.5699]
[1718547482084,25.2255,146.68,146.64,7.5694]
[1718547482284,5.47,146.65,146.64,7.5694]
[1718547483080,7.5672,146.69,146.65,7.5688]
[1718547483270,5.47,146.66,146.65,7.5688]
[1718547483472,5.47,146.66,146.65,2.5229]
[1718547484282,5.47,146.66,146.64,7.5691]
[1718547484475,5.47,146.65,146.64,7.5691]
[1718547485167,5.47,146.65,146.63,2.5232]
[1718547486182,5.47,146.65,146.63,7.5698]
[1718547486591,5.47,146.65,146.64,7.5694]
[1718547487580,5.47,146.65,146.6,5.47]
[1718547487581,5.47,146.65,146.63,7.5697]
[1718547487758,5.47,146.65,146.63,7.5699]
[1718547491189,13.0396,146.64,146.6,7.5712]
[1718547491395,13.0396,146.64,146.6,2.5237]
[1718547491396,5.47,146.62,146.6,2.5237]
[1718547491594,5.47,146.62,146.6,7.5713]
[1718547491882,5.47,146.62,146.6,2.5237]
[1718547492292,5.47,146.61,146.58,5.0482]
[1718547492601,5.47,146.61,146.6,2.5238]
[1718547492786,5.47,146.61,146.59,7.5717]
[1718547492969,5.47,146.61,146.59,5.0478]
[1718547494775,5.47,146.61,146.6,7.5715]
[1718547495874,5.47,146.61,146.57,2.5242]
[1718547495875,10.5174,146.61,146.57,2.5242]
[1718547496087,5.47,146.58,146.57,2.5242]
[1718547496280,5.47,146.58,146.56,7.5733]
[1718547496478,5.47,146.58,146.57,7.573]
[1718547497169,5.47,146.58,146.57,2.5243]
[1718547497704,5.47,146.58,146.56,7.5734]
[1718547497999,5.47,146.57,146.56,7.5735]
[1718547498196,5.47,146.57,146.56,2.5245]
[1718547498376,5.47,146.57,146.56,7.5736]
[1718547498678,2.5239,146.6,146.53,5.47]
[1718547498883,5.47,146.58,146.57,2.5243]
[1718547499086,5.47,146.58,146.56,7.5733]
[1718547499313,5.47,146.58,146.57,2.5243]
[1718547499871,5.47,146.58,146.56,5.0489]
[1718547500286,5.47,146.57,146.56,7.5734]
[1718547500685,5.47,146.58,146.56,5.0489]
[1718547500899,5.47,146.58,146.56,7.5733]
[1718547501106,5.47,146.57,146.55,2.5246]
[1718547501291,5.47,146.56,146.54,2.5248]
[1718547501475,15.1454,146.58,146.55,2.5247]
[1718547501476,7.5726,146.58,146.55,2.5247]
[1718547501785,7.5726,146.58,146.54,5.0498]
[1718547501786,5.47,146.56,146.54,5.0498]
[1718547502109,5.47,146.55,146.54,7.5747]
[1718547504086,5.47,146.55,146.46,15.1448]
[1718547504087,5.81,146.55,146.46,15.1448]
[1718547504287,5.47,146.52,146.47,25.47]
[1718547504492,5.47,146.52,146.51,7.576]
[1718547505087,5.47,146.52,146.5,7.5764]
[1718547505292,7.5747,146.54,146.51,2.5254]
[1718547505293,2.5249,146.54,146.51,2.5254]
[1718547505493,5.47,146.52,146.51,2.5254]
[1718547506001,5.47,146.52,146.51,7.5762]
[1718547506911,5.47,146.52,146.5,2.5255]
[1718547507114,5.64,146.52,146.5,2.5255]
[1718547507422,5.47,146.51,146.47,5.0518]
[1718547507708,5.47,146.51,146.49,7.5772]
[1718547507907,5.47,146.51,146.49,5.0515]
[1718547508704,5.47,146.51,146.49,7.5771]
[1718547509019,5.47,146.51,146.5,7.5766]
[1718547510007,5.47,146.51,146.5,2.5255]
[1718547511292,5.47,146.51,146.5,7.5766]
[1718547511498,0.17,146.53,146.51,2.5254]
[1718547511793,5.47,146.53,146.51,7.5762]
[1718547512394,2.5249,146.54,146.51,2.5254]
[1718547512604,5.47,146.52,146.51,7.5762]
[1718547513103,5.47,146.52,146.45,22.3426]
[1718547513104,7.5732,146.57,146.5,5.47]
[1718547513310,7.5737,146.56,146.46,20.0]
[1718547513503,5.47,146.53,146.52,2.5251]
[1718547513703,5.47,146.53,146.51,7.5758]
[1718547514004,5.47,146.53,146.5,5.0509]
[1718547514193,2.5249,146.54,146.5,5.0509]
[1718547514194,5.47,146.52,146.5,5.0509]
[1718547514614,5.47,146.51,146.5,5.051]
[1718547514811,5.47,146.51,146.5,2.5254]
[1718547514981,5.47,146.51,146.5,5.0511]
[1718547515187,5.47,146.51,146.5,7.5766]
[1718547517208,2.5249,146.54,146.51,2.5253]
[1718547517407,5.47,146.52,146.5,7.5764]
[1718547517608,5.47,146.52,146.51,2.5254]
[1718547517916,5.47,146.52,146.51,7.5762]
[1718547518211,7.9952,146.52,146.49,2.5256]
[1718547518409,5.47,146.5,146.49,2.5256]
[1718547518905,5.47,146.5,146.49,7.5771]
[1718547519106,5.47,146.5,146.45,15.7065]
[1718547519295,5.47,146.5,146.49,2.5257]
[1718547519729,5.47,146.5,146.49,7.5772]
[1718547519922,30.0645,146.53,146.44,5.47]
[1718547519923,7.3381,146.53,146.5,7.5764]
[1718547520102,0.34,146.52,146.5,7.5764]
[1718547520301,5.81,146.52,146.5,7.5764]
[1718547520507,5.47,146.51,146.5,7.5764]
[1718547520809,5.47,146.52,146.5,7.5764]
[1718547521006,2.865,146.53,146.5,7.5765]
[1718547521192,5.47,146.52,146.5,2.5255]
[1718547521392,7.9952,146.52,146.49,2.5256]
[1718547521730,5.47,146.52,146.5,2.5255]
[1718547521891,5.47,146.51,146.49,7.577]
[1718547522312,5.47,146.51,146.5,2.5255]
[1718547522514,2.8651,146.53,146.5,2.5255]
[1718547522790,5.47,146.52,146.5,2.5255]
[1718547523128,7.9952,146.52,146.49,7.577]
[1718547523332,7.11639913,146.58,146.5,22.6476]
[1718547523629,2.5249,146.54,146.51,2.5253]
[1718547523793,22.7228,146.55,146.51,13.046]
[1718547523794,25.2476,146.55,146.51,13.046]
[1718547523986,5.47,146.56,146.54,2.5248]
[1718547524226,30.7127,146.58,146.53,5.47]
[1718547524392,2.5244,146.57,146.54,2.5248]
[1718547524588,7.5731,146.57,146.54,2.5248]
[1718547524819,13.0431,146.57,146.54,2.5248]
[1718547524989,12.6219,146.57,146.53,5.0499]
[1718547525190,17.20432843,146.61,146.55,5.47]
[1718547525500,7.9939,146.6,146.57,2.5242]
[1718547525699,13.0416,146.6,146.57,2.5242]
[1718547525906,10.0962,146.59,146.55,2.5246]
[1718547526114,2.5243,146.58,146.55,2.5246]
[1718547526319,2.5243,146.58,146.55,7.574]
[1718547526511,7.10902843,146.61,146.52,6.0757]
[1718547526512,2.524,146.6,146.52,6.0757]
[1718547526711,28.185,146.6,146.55,5.47]
[1718547527018,2.524,146.59,146.56,2.5244]
[1718547527412,13.0421,146.59,146.56,2.5244]
[1718547527618,7.994,146.59,146.56,7.5735]
[1718547527916,5.47,146.59,146.57,2.5243]
[1718547528303,2.524,146.59,146.56,7.5735]
[1718547528616,2.5238,146.61,146.52,6.0757]
[1718547528799,7.5707,146.62,146.59,2.524]
[1718547529003,7.9936,146.62,146.59,7.572]
[1718547529343,2.5237,146.61,146.58,7.5722]
[1718547529526,2.5236,146.62,146.59,7.5719]
[1718547529694,2.5236,146.62,146.6,2.5238]
[1718547529899,20.4889,146.69,146.58,16.5719]
[1718547530097,22.7028,146.68,146.59,20.0]
[1718547530308,2.5225,146.68,146.65,2.5228]
[1718547530510,13.0372,146.69,146.66,2.5227]
[1718547530727,13.0375,146.68,146.65,2.5228]
[1718547531024,20.605,146.68,146.65,2.5228]
[1718547531240,15.135,146.68,146.65,2.5228]
[1718547531528,2.5226,146.68,146.65,7.5688]
[1718547531702,7.5675,146.68,146.65,7.5688]
[1718547531908,7.5675,146.68,146.65,2.5228]
[1718547532305,2.5223,146.69,146.66,2.5228]
[1718547532505,2.5225,146.68,146.65,2.5228]
[1718547532702,2.5225,146.68,146.65,7.5687]
[1718547532903,7.5679,146.67,146.64,2.523]
[1718547533116,2.5232,146.64,146.61,2.5236]
[1718547533314,18.0853,146.65,146.6,5.47]
[1718547533629,5.47,146.65,146.63,2.5233]
[1718547533827,5.47,146.65,146.62,5.0469]
[1718547534134,5.47,146.65,146.6,5.47]
[1718547534135,15.5625,146.65,146.6,5.47]
[1718547534426,7.9935,146.63,146.6,2.5238]
[1718547534631,13.0403,146.63,146.6,2.5238]
[1718547534808,7.9934,146.63,146.6,7.5715]
[1718547535220,7.9935,146.62,146.59,2.5239]
[1718547535412,2.5237,146.61,146.58,7.5725]
[1718547535714,5.47,146.6,146.58,7.5724]
[1718547536028,5.47,146.6,146.57,5.0487]
[1718547536528,5.47,146.62,146.6,2.5238]
[1718547536719,22.7097,146.64,146.6,5.0477]
[1718547536918,7.5698,146.64,146.6,5.0477]
[1718547537448,7.9933,146.63,146.6,7.5714]
[1718547537616,7.9933,146.63,146.61,2.5237]
[1718547537803,5.47,146.63,146.6,5.0477]
[1718547538001,7.9933,146.63,146.6,7.5714]
[1718547538206,7.9936,146.62,146.59,2.524]
[1718547538637,7.9936,146.62,146.59,7.572]
[1718547539011,13.0406,146.62,146.59,2.524]
[1718547539611,7.9937,146.61,146.56,16.5719]
[1718547539846,20.6122,146.61,146.58,2.5241]
[1718547540017,30.7071,146.61,146.58,2.5241]
[1718547540227,5.47,146.6,146.58,7.5725]
[1718547540417,5.47,146.6,146.59,2.524]
[1718547540729,5.47,146.6,146.58,2.5242]
[1718547541531,5.47,146.59,146.57,2.5242]
[1718547541732,5.47,146.58,146.57,2.5242]
[1718547542116,5.47,146.58,146.57,7.5729]
[1718547542507,0.34,146.63,146.6,2.5237]
[1718547542709,5.98,146.62,146.6,2.5237]
[1718547543109,8.5035,146.62,146.59,7.5718]
[1718547543504,5.98,146.62,146.6,2.5238]
[1718547543719,5.47,146.62,146.61,2.5237]
[1718547543919,22.26450449,146.66,146.59,5.47]
[1718547544129,28.1789,146.64,146.6,7.5712]
[1718547544433,5.47,146.61,146.59,5.0479]
[1718547544644,5.47,146.61,146.59,7.5718]
[1718547544950,5.47,146.61,146.56,5.47]
[1718547544951,5.47,146.61,146.6,2.5238]
[1718547545116,5.47,146.61,146.54,21.7355]
[1718547545117,10.8575,146.61,146.54,21.7355]
[1718547545323,5.47,146.6,146.58,2.5241]
[1718547545625,5.47,146.6,146.58,7.5725]
[1718547546028,5.47,146.6,146.58,5.0484]
[1718547546414,5.47,146.6,146.58,7.5725]
[1718547546615,5.47,146.6,146.58,2.5241]
[1718547546832,5.47,146.59,146.58,7.5725]
[1718547547235,5.47,146.59,146.54,15.6598]
[1718547547533,5.47,146.59,146.54,2.5248]
[1718547547534,5.47,146.55,146.54,2.5248]
[1718547547761,5.47,146.55,146.53,2.5249]
[1718547547920,2.5245,146.56,146.53,7.5749]
[1718547548115,5.47,146.54,146.53,7.5749]
[1718547548934,5.47,146.55,146.53,7.5749]
[1718547549734,5.47,146.55,146.54,2.5249]
[1718547550052,13.5543,146.55,146.51,5.0506]
[1718547550246,3.0348,146.55,146.52,2.5251]
[1718547550418,5.47,146.54,146.52,2.5251]
[1718547550820,5.47,146.54,146.52,7.5755]
[1718547551248,5.47,146.53,146.51,2.5252]
[1718547551455,5.47,146.52,146.5,7.5763]
[1718547551761,2.5251,146.53,146.5,7.5763]
[1718547551762,5.47,146.51,146.5,7.5764]
[1718547551961,3.0347,146.55,146.52,5.0503]
[1718547552259,5.47,146.54,146.52,7.5754]
[1718547552545,5.47,146.53,146.51,7.576]
[1718547553525,5.47,146.53,146.51,2.5253]
[1718547553731,5.47,146.52,146.5,7.5764]
[1718547553934,7.9952,146.52,146.49,7.5769]
[1718547554126,7.5758,146.52,146.46,15.6598]
[1718547554422,5.98,146.51,146.49,7.5771]
[1718547554637,2.6951,146.53,146.5,2.5255]
[1718547554844,5.47,146.52,146.5,2.5255]
[1718547555025,5.47,146.52,146.5,7.5766]
[1718547555226,7.9953,146.52,146.49,7.5769]
[1718547555426,5.81,146.51,146.48,7.5775]
[1718547555843,5.81,146.51,146.49,2.5257]
[1718547556046,5.81,146.51,146.49,7.5772]
[1718547556551,5.81,146.51,146.46,21.1298]
[1718547556734,5.81,146.51,146.49,2.5257]
[1718547557126,5.81,146.51,146.49,7.5772]
[1718547557644,5.81,146.51,146.46,21.1298]
[1718547557645,0.34,146.51,146.5,5.0511]
[1718547557852,5.98,146.51,146.5,7.5766]
[1718547558150,5.98,146.51,146.49,2.5256]
[1718547558452,5.98,146.51,146.49,2.5257]
[1718547558824,5.98,146.51,146.49,7.5772]
[1718547559432,0.51,146.51,146.49,2.5257]
[1718547559738,13.0448,146.54,146.51,2.5252]
[1718547559937,15.1495,146.54,146.5,5.051]
[1718547560249,7.995,146.54,146.51,7.5761]
[1718547560760,15.1489,146.55,146.52,2.5252]
[1718547561054,15.1489,146.55,146.51,5.0508]
[1718547561055,25.2482,146.55,146.51,5.0508]
[1718547561228,5.47,146.54,146.51,5.0508]
[1718547561427,25.9282,146.55,146.51,5.0508]
[1718547561637,5.98,146.54,146.51,5.0508]
[1718547561836,8.5049,146.54,146.51,5.0508]
[1718547562124,8.5049,146.54,146.51,7.5761]
[1718547562339,3.0349,146.54,146.51,7.5761]
[1718547562745,0.51,146.54,146.52,2.5251]
[1718547562931,7.09449972,146.58,146.56,2.5245]
[1718547563143,2.5242,146.58,146.55,7.574]
[1718547563352,43.3443,146.59,146.56,2.5245]
[1718547563550,2.5237,146.61,146.54,5.47]
[1718547563751,2.524,146.59,146.56,5.0489]
[1718547563940,6.0002,146.62,146.57,5.0484]
[1718547564146,7.5717,146.6,146.57,2.5243]
[1718547564560,23.1365,146.61,146.57,2.5243]
[1718547564561,22.7138,146.61,146.57,7.573]
[1718547564856,28.1838,146.61,146.57,7.573]
[1718547565061,2.5239,146.6,146.57,7.573]
[1718547565440,2.524,146.59,146.56,13.0433]
[1718547565758,2.5243,146.58,146.53,15.3845]
[1718547565951,7.5728,146.58,146.55,2.5246]
[1718547566160,2.5243,146.58,146.55,7.574]
[1718547566343,25.2411,146.59,146.55,7.574]
[1718547566543,7.5718,146.6,146.57,2.5243]
[1718547566751,22.7123,146.62,146.56,5.47]
[1718547567060,2.5237,146.61,146.58,7.5725]
[1718547567249,7.5711,146.61,146.58,2.5241]
[1718547567650,15.1422,146.61,146.58,2.5241]
[1718547567853,2.5237,146.61,146.58,7.5725]
[1718547568036,10.5162,146.65,146.6,5.47]
[1718547568240,13.0393,146.65,146.62,2.5235]
[1718547568551,22.7086,146.64,146.6,5.47]
[1718547568738,2.5234,146.63,146.6,7.9937]
[1718547568936,2.5234,146.63,146.6,13.0413]
[1718547569144,7.5701,146.63,146.6,13.0413]
[1718547569364,7.5701,146.63,146.6,7.5713]
[1718547569533,23.1322,146.64,146.61,2.5236]
[1718547569534,13.0397,146.64,146.61,2.5236]
[1718547569736,2.5233,146.63,146.6,7.5713]
[1718547569965,7.5701,146.63,146.6,2.5238]
[1718547570444,2.5234,146.63,146.6,7.5715]
[1718547570966,2.5234,146.63,146.6,5.0477]
[1718547571363,2.5234,146.63,146.6,7.5714]
[1718547571745,30.7021,146.64,146.6,5.0477]
[1718547571945,23.1326,146.64,146.6,5.0477]
[1718547572253,13.0399,146.64,146.6,5.0477]
[1718547572455,20.6095,146.64,146.6,5.0477]
[1718547572656,10.7722,146.65,146.53,15.3845]
[1718547572657,13.0412,146.61,146.53,15.3845]
[1718547572860,13.0416,146.6,146.57,2.5243]
[1718547573057,0.34,146.62,146.55,5.47]
[1718547573263,7.9111,146.61,146.58,2.5241]
[1718547573663,0.34,146.61,146.58,5.0483]
[1718547573967,0.34,146.61,146.58,7.5723]
[1718547574554,2.5239,146.6,146.57,2.5243]
[1718547574761,5.47,146.58,146.53,15.3845]
[1718547575071,5.47,146.58,146.55,2.5245]
[1718547575250,5.47,146.58,146.56,2.5245]
[1718547575451,7.9942,146.58,146.55,7.5739]
[1718547575650,5.47,146.58,146.55,7.5739]
[1718547575952,7.9942,146.58,146.55,7.5739]
[1718547576267,5.47,146.57,146.55,7.5739]
[1718547576468,5.47,146.57,146.55,2.5246]
[1718547576965,5.47,146.57,146.55,7.574]
[1718547577270,5.47,146.57,146.51,6.1494]
[1718547577569,22.7183,146.58,146.55,2.5247]
[1718547577747,22.7183,146.58,146.51,6.1494]
[1718547577748,15.1456,146.58,146.54,7.5743]
[1718547577949,7.573,146.58,146.55,2.5247]
[1718547578161,25.7512,146.59,146.55,5.0494]
[1718547578554,8.0823,146.59,146.55,5.0494]
[1718547578976,2.5242,146.58,146.55,5.0494]
[1718547579154,25.7505,146.59,146.55,7.5739]
[1718547579354,8.0823,146.59,146.55,5.0494]
[1718547579667,2.5238,146.61,146.58,2.524]
[1718547579863,7.5712,146.61,146.58,2.524]
[1718547580169,10.0942,146.62,146.59,2.524]
[1718547580373,15.1573,146.64,146.55,16.1511]
[1718547580581,17.6805,146.64,146.61,7.5707]
[1718547580947,15.1573,146.64,146.59,2.5238]
[1718547581152,7.5706,146.62,146.59,2.5238]
[1718547581477,7.5706,146.62,146.59,2.524]
[1718547581780,16.44,146.62,146.55,2.5246]
[1718547582074,16.44,146.62,146.54,5.0496]
[1718547582075,2.5242,146.58,146.54,5.0496]
[1718547582365,5.0483,146.59,146.54,5.0496]
[1718547582569,0.17,146.58,146.55,2.5246]
[1718547582874,2.6942,146.58,146.55,2.5247]
[1718547583252,0.17,146.58,146.55,2.5247]
[1718547585079,0.17,146.58,146.55,7.5741]
[1718547585473,0.17,146.58,146.55,5.0494]
[1718547585653,0.51,146.59,146.55,5.0494]
[1718547586179,0.51,146.59,146.56,7.5735]
[1718547587067,3.034,146.59,146.56,2.5244]
[1718547587877,0.51,146.59,146.56,2.5244]
[1718547588083,3.034,146.59,146.56,2.5244]
[1718547588585,0.51,146.59,146.56,2.5244]
[1718547589495,0.51,146.59,146.56,7.5734]
[1718547589789,3.034,146.59,146.56,2.5244]
[1718547590659,0.17,146.58,146.55,7.5738]
[1718547591779,2.6942,146.58,146.54,5.0496]
[1718547591986,0.51,146.57,146.54,7.5743]
[1718547592192,3.0343,146.57,146.54,2.5247]
[1718547592364,0.51,146.57,146.54,2.5247]
[1718547592685,3.0344,146.57,146.54,2.5247]
[1718547593178,0.17,146.56,146.53,5.0499]
[1718547595404,0.51,146.57,146.55,2.5246]
[1718547595564,0.51,146.57,146.55,7.574]
[1718547596369,0.51,146.57,146.55,2.5246]
[1718547596566,0.51,146.57,146.55,7.574]
[1718547596793,0.51,146.57,146.55,7.5739]
[1718547597174,0.51,146.57,146.55,2.5245]
[1718547597376,5.0474,146.61,146.57,2.5243]
[1718547597580,7.5712,146.61,146.57,2.5243]
[1718547597787,2.5238,146.61,146.57,7.5729]
[1718547598180,7.5712,146.61,146.57,7.5728]
[1718547598566,7.5716,146.6,146.56,7.5732]
[1718547599072,2.5242,146.58,146.54,7.5742]
[1718547599280,7.5726,146.58,146.54,7.5742]
[1718547599683,2.5242,146.58,146.54,5.0495]
[1718547600065,2.5242,146.58,146.54,7.5742]
[1718547600265,0.17,146.58,146.54,5.0495]
[1718547600480,3.2042,146.58,146.54,5.0495]
[1718547600700,0.68,146.58,146.55,5.0494]
[1718547600896,3.2042,146.58,146.55,2.5247]
[1718547601588,3.2042,146.58,146.54,5.0495]
[1718547602073,0.68,146.58,146.54,5.0495]
[1718547602397,0.68,146.58,146.55,7.574]
[1718547602898,0.68,146.58,146.55,2.5246]
[1718547603589,8.2527,146.58,146.54,7.5742]
[1718547604096,0.17,146.56,146.53,2.5249]
[1718547604295,3.2046,146.56,146.52,5.0503]
[1718547604493,3.2046,146.56,146.51,7.576]
[1718547604494,0.17,146.54,146.51,7.576]
[1718547604693,0.68,146.54,146.51,7.576]
[1718547604890,0.68,146.54,146.51,5.0507]
[1718547605193,0.68,146.54,146.51,7.5759]
[1718547606170,3.2049,146.54,146.51,2.5252]
[1718547606572,0.68,146.54,146.52,2.5252]
[1718547606801,0.68,146.54,146.51,7.5761]
[1718547607171,3.2049,146.54,146.5,7.5764]
[1718547607583,8.2547,146.54,146.5,7.5764]
[1718547608299,0.68,146.54,146.51,2.5253]
[1718547608502,3.205,146.54,146.5,5.051]
[1718547609378,8.685,146.54,146.5,5.051]
[1718547609907,0.51,146.54,146.51,5.0507]
[1718547610111,5.82,146.54,146.51,7.5759]
[1718547610297,5.82,146.54,146.52,2.5252]
[1718547610484,5.82,146.54,146.51,7.5759]
[1718547610805,5.48,146.54,146.51,7.5759]
[1718547611004,5.0488,146.57,146.53,2.525]
[1718547611207,8.0044,146.57,146.53,7.5749]
[1718547611508,13.0537,146.56,146.52,7.5753]
[1718547612209,5.48,146.56,146.53,2.525]
[1718547612391,8.0045,146.56,146.53,2.525]
[1718547612794,5.48,146.56,146.53,2.525]
[1718547613001,8.0045,146.56,146.53,2.525]
[1718547613193,5.48,146.56,146.53,2.525]
[1718547613812,8.0045,146.56,146.53,2.525]
[1718547614583,8.0045,146.56,146.52,7.5754]
[1718547615086,8.0045,146.56,146.52,5.0503]
[1718547615283,13.0536,146.56,146.52,5.0503]
[1718547615503,13.0536,146.56,146.52,7.5753]
[1718547615810,13.0536,146.56,146.52,5.0503]